Cogmind - Beta 13 @@@ ROGUE MODE // 2024.04.01 @ 18:00:55 Player: Tyzemol Result: Destroyed by D-53 Grenadier with Mini Grenade Launcher Performance ------------- Evolutions (0) 0 Regions Visited (2) 400 Robots Destroyed (19) 95 Value Destroyed (356) 356 Prototype IDs (2) 40 Alien Tech Used (0) 0 Bonus (25) 25 TOTAL SCORE: 916 Bonus ------- Follower Combat Kills 25 Cogmind --------- Core Integrity 0/250 Matter 288/300 Energy 98/100 System Corruption 0% Temperature Warm (132) Movement Core (400) Ox7 Location -10/Mines Parts ------- > --- POWER (1) -------- (None) > --- PROPULSION (2) --- (None) > --- UTILITY (2) ------ Large Storage Unit Targeting Computer > --- WEAPON (2) ------- Light Cannon > --- INVENTORY (15) --- Ion Engine Light Ion Engine High-capacity Matter Pod (200) Medium Laser Small Laser Assault Rifle Light Cannon Light Cannon Light Cannon Light Cannon Hammer Peak State ------------ > --- POWER ------------ Ion Engine > --- PROPULSION ------- Light Treads Light Treads > --- UTILITY ---------- Large Storage Unit Targeting Computer > --- WEAPON ----------- Particle Gun Light Cannon > --- INVENTORY -------- Ion Engine Light Ion Engine High-capacity Matter Pod Medium Laser Small Laser Assault Rifle Light Cannon Light Cannon Light Cannon Light Cannon Light Cannon Hammer [Rating: 9] Favorites ----------- Power Ion Engine Engine Ion Engine Propulsion Light Treads Treads Light Treads Utility Large Storage Unit Device Sensor Array Storage Large Storage Unit Processor Targeting Computer Weapon Light Cannon Energy Gun Particle Gun Ballistic Gun Assault Rifle Ballistic Cannon Light Cannon Build | -11 -10 -10 ------- Run | Yrd Mat Min Slots Evolved . | . . . Power . | . . . Propulsion . | . . . Utility . | . . . Weapon . | . . . Parts Attached 16 | 6 7 3 Power 1 | 1 . . Engine 1 | 1 . . Core . | . . . Reactor . | . . . Propulsion 3 | 2 . 1 Treads 3 | 2 . 1 Leg . | . . . Wheel . | . . . Hover . | . . . Flight . | . . . Utility 4 | 1 3 . Device 1 | . 1 . Storage 2 | 1 1 . Processor 1 | . 1 . Hackware . | . . . Protection . | . . . Artifact . | . . . Weapon 8 | 2 4 2 Energy Gun 2 | 1 . 1 Energy Cannon . | . . . Ballistic Gun 1 | 1 . . Ballistic Cannon 5 | . 4 1 Launcher . | . . . Special Weapon . | . . . Impact Weapon . | . . . Slashing Weapon . | . . . Piercing Weapon . | . . . Special Melee Weapon . | . . . Unidentified Prototypes . | . . . Parts Lost 7 | . 2 5 Power 1 | . . 1 Propulsion 3 | . 1 2 Utility 1 | . 1 . Weapon 2 | . . 2 Highest Loss Streak 5 | . 2 5 To Critical Strikes . | . . . Average Slot Usage (%) 93 | . 91 95 Engine 13 | . 14 13 Treads 24 | . 24 24 Device 4 | . 8 . Storage 14 | . 14 14 Processor 7 | . 1 14 Energy Gun 2 | . 1 2 Ballistic Gun 1 | . 3 . Ballistic Cannon 23 | . 22 25 Naked Turns . | . . . Heaviest Build 32 | 14 32 31 Greatest Support 40 | 40 40 40 Greatest Overweight (x) 1 | 1 1 1 Average Overweight (x) . | . . . Largest Inventory Capacity 15 | 8 15 15 Average Capacity 12 | 7 11 15 Most Carried 12 | 2 7 12 Average Carried 7 | 1 5 9 Final Capacity 15 | 8 15 15 Final Carried 11 | 2 7 11 Class Distribution -------------------- 100% | Mutant Dominant Class ---------------- Mutant | -10/Materials Mutant | -10/Mines Resources | -11 -10 -10 ----------- Run | Yrd Mat Min Matter Collected 675 | 194 259 222 Remotely . | . . . Salvage Created 304 | . 221 83 Parts 33 | . 24 9 Haulers Intercepted . | . . . Recyclers Shooed . | . . . Parts Field Recycled . | . . . Retrieved Matter . | . . . Parts Self-Destructed . | . . . Prevented . | . . . Kills | -11 -10 -10 ------- Run | Yrd Mat Min Combat Hostiles Destroyed 16 | . 11 5 Guns 3 | . 3 . Cannons 13 | . 8 5 Classes Destroyed 5 | . 4 1 Worker 2 | . 2 . Watcher 1 | . 1 . Swarmer 12 | . 9 3 Grunt 3 | . 2 1 Demolisher 1 | . . 1 Best Kill Streak 4 | . 4 2 Combat Bots Only 3 | . 3 2 Max Kills in Single Turn 1 | . 1 1 Gunslinging . | . . . Exploded . | . . . Melee . | . . . Uniques/NPCs Destroyed . | . . . Combat | -11 -10 -10 -------- Run | Yrd Mat Min Hostile Shots Fired 101 | . 75 26 Missed 30 | . 26 4 Damage Taken 1138 | . 497 641 Core 266 | . 60 206 Absorbed by Shields . | . . . Core Remaining (%) 100 | 100 . . Volleys Fired 53 | . 41 12 Largest 2 | . 2 2 Hottest 100 | . 70 100 Shots Fired 106 | . 82 24 Gun 23 | . 18 5 Cannon 83 | . 64 19 Launcher . | . . . Special . | . . . Kinetic 93 | . 74 19 Thermal 13 | . 8 5 Explosive . | . . . Electromagnetic . | . . . Robot Hit Streak 4 | . 4 4 Robot Miss Streak 6 | . 6 2 Penetration Max . | . . . Secondary Targets 1 | . 1 . Max Gunslinging Chain 1 | . 1 . Shots Hit Robots 41 | . 29 12 Core Hits 22 | . 14 8 Critical Kills . | . . . Critical Parts Destroyed . | . . . Critical Strikes . | . . . Melee Attacks . | . . . Impact . | . . . Slashing . | . . . Piercing . | . . . Sneak Attacks . | . . . Combat Hostiles . | . . . Follow-up Attacks . | . . . Damage Inflicted 662 | . 424 238 Guns 146 | . 85 61 Cannons 516 | . 339 177 Explosions . | . . . Melee . | . . . Ramming . | . . . Kinetic 563 | . 386 177 Thermal 99 | . 38 61 Explosive . | . . . Electromagnetic . | . . . Impact . | . . . Slashing . | . . . Piercing . | . . . Highest Corruption . | . . . Average Corruption . | . . . Corruption Purged . | . . . Corruption Blocked . | . . . Overload Shots . | . . . Overflow Damage 1 | . 1 . Projectiles 1 | . 1 . Explosions . | . . . Melee . | . . . Knockbacks 5 | . 3 2 Impact . | . . . Kinetic 5 | . 3 2 Secondary . | . . . Self-Inflicted Damage 88 | . 88 . Shots 1 | . 1 . Rammed . | . . . Targets Rammed . | . . . Kicked . | . . . Crushed . | . . . Highest Temperature 132 | . 90 132 Average Temperature 31 | . 28 38 Received Heat Transfer 51 | . 42 9 Siege Activations . | . . . Robots Corrupted . | . . . Combat Hostiles . | . . . Parts Fried . | . . . Impact Corruptions . | . . . Robots Melted . | . . . Combat Hostiles . | . . . Parts Melted . | . . . Heat Transferred 259 | . 111 148 Parts Sabotaged . | . . . Parts Stolen . | . . . Parts Stripped . | . . . Power Chain Reactions . | . . . Alert | -11 -10 -10 ------- Run | Yrd Mat Min Peak Influence 218 | . 218 90 Initial 35 | . . 35 Average 67 | . 104 36 Maximum Alert Level 1 | . 1 . Low Security (%) 99 | 100 98 100 Level 1 . | . 1 . Level 2 . | . . . Level 3 . | . . . Level 4 . | . . . Level 5 . | . . . High Security . | . . . Max Security . | . . . Squads Dispatched 1 | . 1 . Investigation . | . . . Extermination . | . . . Reinforcement 1 | . 1 . Assault . | . . . Garrison . | . . . Intercept . | . . . Searches Triggered . | . . . Construction Impeded . | . . . Haulers Reinforced . | . . . Active Scanning Responses . | . . . Cargo Convoy Interrupts . | . . . Stealth | -11 -10 -10 --------- Run | Yrd Mat Min Distress Signals 2 | . 2 . Communications Jammed . | . . . Distress Signals . | . . . Times Spotted 25 | . 18 7 Peak Tracking Total 4 | . 4 3 Tactical Retreats 1 | . . 1 Traps | -11 -10 -10 ------- Run | Yrd Mat Min Traps Triggered . | . . . Indirectly . | . . . Trap Hack Attempts . | . . . Triggered . | . . . Disarmed . | . . . Reprogrammed . | . . . Reused . | . . . Traps Extracted . | . . . Installed . | . . . Triggered . | . . . Machines | -11 -10 -10 ---------- Run | Yrd Mat Min Machines Disabled 6 | . 5 1 Max in Single Turn 2 | . 2 . Machines Repaired . | . . . Machines Dismantled . | . . . Machines Sabotaged . | . . . Overloaded Fab Kills . | . . . Hacking | -11 -10 -10 --------- Run | Yrd Mat Min Machines Accessed 5 | . 5 . Terminals 3 | . 3 . Fabricators . | . . . Repair Stations . | . . . Recycling Units 2 | . 2 . Scanalyzers . | . . . Garrison Access . | . . . Total Hacks 6 | . 6 . Successful 6 | . 6 . Failed . | . . . Catastrophic . | . . . Database Lockouts . | . . . Manual . | . . . Terminals 3 | . 3 . Fabricators . | . . . Repair Stations . | . . . Recycling Units 3 | . 3 . Scanalyzers . | . . . Garrison Access . | . . . Terminal Hacks 3 | . 3 . Record 1 | . 1 . Prototype ID Bank 1 | . 1 . Registered Components 1 | . 1 . Fabricator Hacks . | . . . Repair Station Hacks . | . . . Recycling Unit Hacks 3 | . 3 . Report Inventory 2 | . 2 . Retrieve Components 1 | . 1 . Scanalyzer . | . . . Garrison Access Hacks . | . . . Unauthorized Hacks . | . . . Terminals . | . . . Fabricators . | . . . Repair Stations . | . . . Recycling Units . | . . . Scanalyzers . | . . . Garrison Access . | . . . Data Cores Recovered . | . . . Used . | . . . Hacking Detections 1 | . 1 . Full Trace Events . | . . . Feedback Events . | . . . Feedback Blocked . | . . . Robot Schematics Acquired . | . . . Robots Built . | . . . Authchips . | . . . Time . | . . . Total Robot Build Rating . | . . . Part Schematics Acquired . | . . . Parts Built . | . . . Authchips . | . . . Time . | . . . Total Part Build Rating . | . . . Parts Repaired . | . . . Time . | . . . Parts Recycled . | . . . Recycled Matter . | . . . Retrieved Matter . | . . . Retrieved Components 2 | . 2 . Parts Scanalyzed . | . . . Part Schematics Acquired . | . . . Parts Damaged . | . . . Bothacking | -11 -10 -10 ------------ Run | Yrd Mat Min Used RIF Installer . | . . . Robots Hacked . | . . . Non-combat . | . . . Combat . | . . . Robot Hacks Applied . | . . . Relay Couplers Released . | . . . Fabnet Peak Effective % . | . . . Robots Rewired . | . . . Allies Hacked . | . . . Hacks Repelled . | . . . Allies | -11 -10 -10 -------- Run | Yrd Mat Min Total Allies 3 | . . 3 Largest Group 3 | . . 3 Highest-Rated Group 40 | . . 40 Highest-Rated Ally 16 | . . 16 Total Orders 4 | . . 4 STAY 1 | . . 1 ROAM 1 | . . 1 FOLLOW 1 | . . 1 GUARD 1 | . . 1 Ally Attacks 12 | . . 12 Total Damage 148 | . . 148 Kills 1 | . . 1 Allies Corrupted . | . . . Allies Melted . | . . . Intel | -11 -10 -10 ------- Run | Yrd Mat Min Robot Analysis Total . | . . . Derelict Logs Recovered 2 | . . 2 Drone Launches . | . . . Drone Recoveries . | . . . Exploration | -11 -10 -10 ------------- Run | Yrd Mat Min Turns Passed 2369 | 83 1138 1148 Spaces Moved 1087 | 48 454 585 Core 5 | 5 . . Treads 1082 | 43 454 585 Legs . | . . . Wheels . | . . . Hover . | . . . Flight . | . . . Fastest Speed 50 | 50 160 160 Average Speed 176 | 151 180 174 Slowest Speed 240 | 160 240 240 Overloaded Moves . | . . . Propulsion Burnouts . | . . . Robots Hopped . | . . . Cave-ins Triggered . | . . . Exploration Rate (%) 48 | 4 67 73 Regions Visited 2 Branch Regions 1 Pre-discovered Areas 1 | . . 1 Known Exits Taken . | . . . Unknown Exits Taken 2 | 1 1 . Scrap Searched 1 | . . 1 Spaces Dug . | . . . Terrain Destroyed 32 | . 32 . Melee . | . . . Projectile . | . . . AOE 32 | . 32 . Terrain Rammed . | . . . Walls Destroyed . | . . . Machines Disabled . | . . . Actions | -11 -10 -10 --------- Run | Yrd Mat Min Total 1429 | 55 688 686 Wait 261 | . 180 81 Move 1085 | 47 453 585 Hop . | . . . Pick Up 12 | 2 5 5 Fast Attach 11 | 6 4 1 Attach 1 | . . 1 Detach 1 | . 1 . Swap 4 | . 3 1 Drop 1 | . 1 . Fire 53 | . 41 12 Melee . | . . . Ram . | . . . Kick . | . . . Crush . | . . . Escape Stasis . | . . . Rewire . | . . . Trap . | . . . Miscellaneous . | . . . Route ------- -11/Scrapyard -10/Materials (discovered 2 exits: *Mat / [*Min]) -10/Mines (discovered 3 exits: *Mat x2 / [*Exi]) History --------- Turn | Location | Event 13 | -11/Scrapyard | Discovered new exit (range 16) 84 | -11/Scrapyard | Entered Materials 302 | -10/Materials | Build established: Mutant 952 | -10/Materials | Discovered new exit (range 13) 1043 | -10/Materials | Discovered new exit (range 6) 1222 | -10/Materials | Entered Mines 1223 | -10/Mines | Learned location of Storage (-7) 1541 | -10/Mines | Learned Materials terminal intel 1714 | -10/Mines | Identified exit to Materials 1778 | -10/Mines | Discovered exit to Materials (range 6) 1909 | -10/Mines | Assisted by bots powering up and referring to "LRC-V3" 2227 | -10/Mines | Deemed a non-threat by the Exiles lab entrance 2228 | -10/Mines | Discovered new exit (range 5) 2338 | -10/Mines | Assembled infested the area 2361 | -10/Mines | Core integrity fell below 50% 2365 | -10/Mines | Core integrity fell below 20% 2370 | -10/Mines | Destroyed by D-53 Grenadier with Mini Grenade Launcher Last Messages --------------- 02360_ U-05 Engineer lays Concrete. 02360_ K-01 Serf collects debris. 02360_ Lgt. Cannon destroyed. 02361_ U-05 Engineer lays Concrete. 02361_ U-05 Engineer builds a Wall. 02362_ U-05 Engineer lays Concrete. 02364_ Ion Engine destroyed. 02364_ K-01 Serf collects debris. 02364_ U-05 Engineer lays Concrete. 02365_ Destroyed Shock Absorption System. 02365_ D-53 Grenadier destroyed. 02365_ U-05 Engineer lays Concrete. 02365_ U-05 Engineer builds a Wall. 02366_ K-01 Serf collects debris. 02366_ U-05 Engineer lays Concrete. 02368_ Particle Gun destroyed. 02369_ The unstable cave ceiling collapses. 02369_ U-05 Engineer lays Concrete. 02369_ K-01 Serf collects debris. 02370_ U-05 Engineer lays Concrete. Map ----- +----------------------------------------------------+ | | | | | | | ?????????????????????????????????????????????????? | | ?????????????????????????????????????????????????? | | ?????####????????????????????????????????????????? | | ????## ##???????????####????????????????????????? | | ????# #???????????# <#?????????#####??????????? | | ???## #??????????## ######??#### ##?????????? | | ?### #??????????# ## #### ##????????? | | ## ##????????## ### ## #????????? | | # ##???????# #### ## #????????? | | # #???????## ## #### #????????? | | ## ## #????????### # #???####????????? | | ### #### #????????# """ #???????????????? | | #??# #????????# """ #???????????????? | | #??# #????????# """ #???????????????? | | ### #??# #???????## #???????????????? | | ??# #??## ##??###### #???????????????? | | ??# #???######## #???????????????? | | ??# ######### #???????????????? | | ### ## ###????????